[Event "*** SCC Grand Prix: Titled Tuesday Blitz"]
[Site "Chess.com"]
[Date "2020.09.29"]
[Round "6"]
[White "CrazyMartian"]
[Black "Chamal_Gedgafov"]
[Result "1-0"]
[WhiteElo "2326"]
[BlackElo "2145"]
[TimeControl "180+1"]
[EndTime "11:06:56 PDT"]
[Termination "CrazyMartian won by resignation"]

1. d4 {[%clk 0:03:00.9]} 1... Nf6 {[%clk 0:02:59.3]} 2. Bf4 {[%clk 0:02:56.4]}
2... e6 {[%clk 0:02:58.7]} 3. e3 {[%clk 0:02:54.7]} 3... d5 {[%clk 0:02:59.1]}
4. Nd2 {[%clk 0:02:50.3]} 4... c5 {[%clk 0:02:59]} 5. c3 {[%clk 0:02:48.3]} 5...
Nc6 {[%clk 0:02:56.1]} 6. Ngf3 {[%clk 0:02:47.7]} 6... Qb6 {[%clk 0:02:56]} 7.
Qb3 {[%clk 0:02:45.4]} 7... c4 {[%clk 0:02:56.3]} 8. Qc2 {[%clk 0:02:44.7]} 8...
Qd8 {[%clk 0:02:50.9]} 9. e4 {[%clk 0:02:40.6]} 9... Bd7 {[%clk 0:02:41.5]} 10.
e5 {[%clk 0:02:38.8]} 10... Nh5 {[%clk 0:02:34.9]} 11. Be3 {[%clk 0:02:38.8]}
11... g6 {[%clk 0:02:32.4]} 12. b3 {[%clk 0:02:18.1]} 12... b5 {[%clk
0:02:31.4]} 13. Be2 {[%clk 0:02:07.4]} 13... Be7 {[%clk 0:02:30.5]} 14. h4
{[%clk 0:01:57.1]} 14... f5 {[%clk 0:02:09.4]} 15. exf6 {[%clk 0:01:54.1]} 15...
Bxf6 {[%clk 0:02:00.6]} 16. g4 {[%clk 0:01:52.8]} 16... Ng7 {[%clk 0:01:59.4]}
17. h5 {[%clk 0:01:51]} 17... Kf7 {[%clk 0:01:46.6]} 18. h6 {[%clk 0:01:40.7]}
18... Ne8 {[%clk 0:01:44.4]} 19. Bf4 {[%clk 0:01:22.7]} 19... Qe7 {[%clk
0:01:29.4]} 20. g5 {[%clk 0:01:21.2]} 20... Rf8 {[%clk 0:01:20.5]} 21. gxf6
{[%clk 0:01:20.3]} 21... Qxf6 {[%clk 0:01:18.8]} 22. Ne5+ {[%clk 0:01:11.5]}
22... Nxe5 {[%clk 0:01:14.7]} 23. Bxe5 {[%clk 0:01:10.7]} 23... Qe7 {[%clk
0:01:04.3]} 24. f4 {[%clk 0:00:55.2]} 24... Kg8 {[%clk 0:01:03.9]} 25. Nf3
{[%clk 0:00:53.6]} 25... Nd6 {[%clk 0:01:03.6]} 26. Bxd6 {[%clk 0:00:53]} 26...
Qxd6 {[%clk 0:01:03.4]} 27. Ne5 {[%clk 0:00:51.3]} 27... Rxf4 {[%clk 0:00:58.4]}
28. Nxg6 {[%clk 0:00:43.3]} 28... Re4 {[%clk 0:00:58.7]} 29. Ne5 {[%clk
0:00:41.9]} 29... Be8 {[%clk 0:00:52.6]} 30. Rg1+ {[%clk 0:00:40.9]} 30... Kh8
{[%clk 0:00:52.6]} 31. O-O-O {[%clk 0:00:38.7]} 31... a5 {[%clk 0:00:47.9]} 32.
Bf3 {[%clk 0:00:36.3]} 32... Rxe5 {[%clk 0:00:46.4]} 33. dxe5 {[%clk 0:00:34.8]}
33... Qxe5 {[%clk 0:00:47.3]} 34. Qd2 {[%clk 0:00:27.5]} 34... cxb3 {[%clk
0:00:38.6]} 35. axb3 {[%clk 0:00:27.3]} 35... Rc8 {[%clk 0:00:37.4]} 36. Kb2
{[%clk 0:00:21.4]} 36... b4 {[%clk 0:00:37]} 37. Rc1 {[%clk 0:00:18.9]} 37...
Bg6 {[%clk 0:00:33]} 38. Rgd1 {[%clk 0:00:17.8]} 38... Qc7 {[%clk 0:00:20.8]}
39. cxb4 {[%clk 0:00:14.7]} 39... Qe5+ {[%clk 0:00:16.6]} 40. Qd4 {[%clk
0:00:14.4]} 40... Qxd4+ {[%clk 0:00:16.2]} 41. Rxd4 {[%clk 0:00:15.3]} 41...
Rxc1 {[%clk 0:00:14.6]} 42. Kxc1 {[%clk 0:00:16.2]} 42... axb4 {[%clk
0:00:14.1]} 43. Rxb4 {[%clk 0:00:17.1]} 43... Kg8 {[%clk 0:00:14.7]} 44. Rb8+
{[%clk 0:00:17.8]} 44... Kf7 {[%clk 0:00:15.4]} 45. Bxd5 {[%clk 0:00:18.4]}
45... Kf6 {[%clk 0:00:16.2]} 46. Bc4 {[%clk 0:00:19]} 46... Ke5 {[%clk
0:00:15.5]} 47. Rb6 {[%clk 0:00:19.9]} 47... Kd4 {[%clk 0:00:16.4]} 48. Bxe6
{[%clk 0:00:20.4]} 48... Kc3 {[%clk 0:00:16]} 49. Bf5 {[%clk 0:00:21.3]} 49...
Bxf5 {[%clk 0:00:16.2]} 50. Rb7 {[%clk 0:00:21.1]} 50... Be4 {[%clk 0:00:16.2]}
51. Rg7 {[%clk 0:00:22]} 51... Kb4 {[%clk 0:00:15.4]} 52. Kd2 {[%clk 0:00:22.9]}
52... Bf5 {[%clk 0:00:15.1]} 53. Ke3 {[%clk 0:00:23.8]} 53... Kxb3 {[%clk
0:00:15.3]} 54. Kf4 {[%clk 0:00:24.7]} 54... Bc2 {[%clk 0:00:15.6]} 55. Ke5
{[%clk 0:00:25.5]} 55... Ka4 {[%clk 0:00:14.1]} 56. Rd7 {[%clk 0:00:25.7]} 56...
Kb5 {[%clk 0:00:14.1]} 57. Rd6 {[%clk 0:00:26.2]} 57... Kc5 {[%clk 0:00:13.5]}
58. Rd2 {[%clk 0:00:26.7]} 58... Bg6 {[%clk 0:00:12.2]} 59. Kf6 {[%clk
0:00:27.6]} 59... Kc6 {[%clk 0:00:11.3]} 60. Kg7 {[%clk 0:00:28.5]} 60... Bf5
{[%clk 0:00:10.9]} 61. Rf2 {[%clk 0:00:28]} 61... Be4 {[%clk 0:00:10.6]} 62. Rd2
{[%clk 0:00:27.6]} 62... Kc5 {[%clk 0:00:10]} 63. Kh8 {[%clk 0:00:27.8]} 63...
Kc6 {[%clk 0:00:09.5]} 64. Rd1 {[%clk 0:00:27.9]} 64... Kc7 {[%clk 0:00:09.4]}
65. Rd4 {[%clk 0:00:27.5]} 65... Bf5 {[%clk 0:00:08.9]} 66. Rf4 {[%clk
0:00:27.2]} 66... Bg6 {[%clk 0:00:08.7]} 67. Rf6 {[%clk 0:00:26.4]} 67... Be4
{[%clk 0:00:07.6]} 68. Rf7+ {[%clk 0:00:26.7]} 68... Kd6 {[%clk 0:00:08.1]} 69.
Rxh7 {[%clk 0:00:26.6]} 69... Ke6 {[%clk 0:00:06.7]} 70. Rg7 {[%clk 0:00:26.6]}
1-0

[Event "*** SCC Grand Prix: Titled Tuesday Blitz"]
[Site "Chess.com"]
[Date "2020.09.29"]
[Round "6"]
[White "vaishali2001"]
[Black "ajdemipopushi"]
[Result "0-1"]
[WhiteElo "2477"]
[BlackElo "2347"]
[TimeControl "180+1"]
[EndTime "11:07:00 PDT"]
[Termination "ajdemipopushi won by resignation"]

1. e4 {[%clk 0:03:00.9]} 1... c5 {[%clk 0:02:59.6]} 2. Nc3 {[%clk 0:02:59.7]}
2... g6 {[%clk 0:03:00]} 3. g3 {[%clk 0:03:00]} 3... Bg7 {[%clk 0:03:00.4]} 4.
Bg2 {[%clk 0:03:00.9]} 4... Nc6 {[%clk 0:03:00.9]} 5. d3 {[%clk 0:03:01.5]} 5...
d6 {[%clk 0:03:00.9]} 6. Be3 {[%clk 0:03:01.4]} 6... Rb8 {[%clk 0:02:59.7]} 7.
Qd2 {[%clk 0:03:00.7]} 7... b5 {[%clk 0:02:53.6]} 8. Nge2 {[%clk 0:02:59.5]}
8... Nd4 {[%clk 0:02:50.9]} 9. O-O {[%clk 0:02:40.7]} 9... e6 {[%clk 0:02:43.4]}
10. Nd1 {[%clk 0:02:17.1]} 10... Nxe2+ {[%clk 0:02:37.5]} 11. Qxe2 {[%clk
0:02:18]} 11... Ne7 {[%clk 0:02:37.7]} 12. f4 {[%clk 0:02:07.5]} 12... O-O
{[%clk 0:02:36.1]} 13. Rb1 {[%clk 0:02:04.7]} 13... b4 {[%clk 0:02:34.3]} 14.
Nf2 {[%clk 0:01:40.5]} 14... a5 {[%clk 0:02:31.4]} 15. g4 {[%clk 0:01:39.1]}
15... f5 {[%clk 0:02:27.3]} 16. gxf5 {[%clk 0:01:27.9]} 16... exf5 {[%clk
0:02:21]} 17. Nh1 {[%clk 0:01:21.3]} 17... Re8 {[%clk 0:02:18.8]} 18. Ng3 {[%clk
0:01:21]} 18... Qd7 {[%clk 0:02:09.1]} 19. Qf2 {[%clk 0:01:13]} 19... Bb7 {[%clk
0:02:06]} 20. b3 {[%clk 0:01:12.5]} 20... Nc6 {[%clk 0:01:56.3]} 21. Kh1 {[%clk
0:01:02.2]} 21... Nd4 {[%clk 0:01:54.4]} 22. Rbe1 {[%clk 0:01:00.3]} 22... fxe4
{[%clk 0:01:51.5]} 23. dxe4 {[%clk 0:00:58.8]} 23... Rf8 {[%clk 0:01:51.2]} 24.
Qd2 {[%clk 0:00:52.2]} 24... Rbe8 {[%clk 0:01:48.3]} 25. f5 {[%clk 0:00:22.8]}
25... gxf5 {[%clk 0:01:41.4]} 26. Bxd4 {[%clk 0:00:23]} 26... Bxd4 {[%clk
0:01:37.8]} 27. Nxf5 {[%clk 0:00:22.5]} 27... Be5 {[%clk 0:01:26.6]} 28. Re3
{[%clk 0:00:15.8]} 28... Kh8 {[%clk 0:01:13.1]} 29. Rh3 {[%clk 0:00:15.7]} 29...
Re7 {[%clk 0:01:00.4]} 30. Qh6 {[%clk 0:00:09.9]} 30... Ref7 {[%clk 0:00:51.3]}
31. Qh5 {[%clk 0:00:06.2]} 31... Rf6 {[%clk 0:00:40.6]} 32. Re3 {[%clk
0:00:05.2]} 32... Rg8 {[%clk 0:00:37.6]} 33. Rf2 {[%clk 0:00:03.4]} 33... Rfg6
{[%clk 0:00:37.2]} 34. Ree2 {[%clk 0:00:03.1]} 34... Qd8 {[%clk 0:00:35.9]} 35.
Qh4 {[%clk 0:00:03]} 35... Qxh4 {[%clk 0:00:35.8]} 36. Nxh4 {[%clk 0:00:03.9]}
36... Rg4 {[%clk 0:00:36.2]} 37. Nf5 {[%clk 0:00:04]} 37... Rf4 {[%clk 0:00:36]}
38. Rxf4 {[%clk 0:00:03.8]} 38... Bxf4 {[%clk 0:00:36.1]} 39. Kg1 {[%clk
0:00:03.6]} 39... Be5 {[%clk 0:00:35.3]} 40. Kf2 {[%clk 0:00:03.3]} 40... Rg6
{[%clk 0:00:35.5]} 41. Bf3 {[%clk 0:00:03.5]} 41... Rf6 {[%clk 0:00:35.9]} 42.
Rd2 {[%clk 0:00:03.3]} 42... Kg8 {[%clk 0:00:34.9]} 43. Rd1 {[%clk 0:00:03.6]}
43... Kf7 {[%clk 0:00:34.8]} 44. Ke3 {[%clk 0:00:03.6]} 44... Ke6 {[%clk
0:00:35]} 45. Bg4 {[%clk 0:00:03.6]} 45... Kf7 {[%clk 0:00:34.6]} 46. Bh5+
{[%clk 0:00:03.5]} 46... Kf8 {[%clk 0:00:33.9]} 47. Rf1 {[%clk 0:00:03]} 47...
h6 {[%clk 0:00:33.5]} 48. Be2 {[%clk 0:00:02.6]} 48... Ke8 {[%clk 0:00:32.7]}
49. h4 {[%clk 0:00:02.8]} 49... Kd8 {[%clk 0:00:32.7]} 50. h5 {[%clk 0:00:02.7]}
50... Kc7 {[%clk 0:00:32.7]} 51. Kd2 {[%clk 0:00:02.4]} 51... d5 {[%clk
0:00:32.4]} 52. exd5 {[%clk 0:00:02.3]} 52... Bxd5 {[%clk 0:00:32.5]} 53. Bd3
{[%clk 0:00:02.7]} 53... Be6 {[%clk 0:00:32.3]} 54. Ne3 {[%clk 0:00:02.4]} 54...
Rxf1 {[%clk 0:00:31.2]} 55. Bxf1 {[%clk 0:00:03]} 55... Bf4 {[%clk 0:00:31]} 56.
Kd3 {[%clk 0:00:03.4]} 56... Bxe3 {[%clk 0:00:29.9]} 57. Kxe3 {[%clk 0:00:04.3]}
57... Bg4 {[%clk 0:00:28.6]} 58. Be2 {[%clk 0:00:04.3]} 58... Bf5 {[%clk
0:00:28.7]} 59. Bd3 {[%clk 0:00:04.6]} 59... Bh3 {[%clk 0:00:29]} 60. Kf4 {[%clk
0:00:04.4]} 60... Kd6 {[%clk 0:00:29.3]} 61. Kg3 {[%clk 0:00:03.3]} 61... Be6
{[%clk 0:00:27.5]} 62. Kf4 {[%clk 0:00:03.6]} 62... a4 {[%clk 0:00:27.4]} 63.
Be4 {[%clk 0:00:02.7]} 63... a3 {[%clk 0:00:26.7]} 64. Bd3 {[%clk 0:00:02.7]}
64... Bd5 {[%clk 0:00:26.7]} 65. Kf5 {[%clk 0:00:01.8]} 65... Bf7 {[%clk
0:00:26.9]} 66. Be2 {[%clk 0:00:01.9]} 66... Be8 {[%clk 0:00:25.7]} 67. Kf6
{[%clk 0:00:02.3]} 67... Kd5 {[%clk 0:00:25.3]} 68. Kg7 {[%clk 0:00:02.5]} 68...
Kd4 {[%clk 0:00:25.8]} 69. Kxh6 {[%clk 0:00:02.9]} 69... Kc3 {[%clk 0:00:26.1]}
70. Kg7 {[%clk 0:00:03.2]} 70... Bxh5 {[%clk 0:00:25.5]} 71. Bxh5 {[%clk
0:00:04.1]} 71... Kb2 {[%clk 0:00:25.8]} 72. Kf6 {[%clk 0:00:01.6]} 72... Kxa2
{[%clk 0:00:25.9]} 73. Ke5 {[%clk 0:00:02.2]} 73... Kb2 {[%clk 0:00:26.5]} 74.
Kd5 {[%clk 0:00:03.1]} 74... a2 {[%clk 0:00:27.1]} 0-1

[Event "*** SCC Grand Prix: Titled Tuesday Blitz"]
[Site "Chess.com"]
[Date "2020.09.29"]
[Round "6"]
[White "lelya96"]
[Black "shriyanasmallya"]
[Result "1/2-1/2"]
[WhiteElo "2203"]
[BlackElo "1600"]
[TimeControl "180+1"]
[EndTime "11:07:21 PDT"]
[Termination "Game drawn by repetition"]

1. d4 {[%clk 0:02:54.9]} 1... d5 {[%clk 0:02:58.6]} 2. Nc3 {[%clk 0:02:54.1]}
2... e6 {[%clk 0:02:58]} 3. e4 {[%clk 0:02:52.8]} 3... Nf6 {[%clk 0:02:57.3]} 4.
Bg5 {[%clk 0:02:51.9]} 4... dxe4 {[%clk 0:02:56.9]} 5. Nxe4 {[%clk 0:02:50.1]}
5... Be7 {[%clk 0:02:57]} 6. Bxf6 {[%clk 0:02:49.4]} 6... Bxf6 {[%clk
0:02:56.5]} 7. Qd3 {[%clk 0:02:49.4]} 7... Nc6 {[%clk 0:02:49.9]} 8. c3 {[%clk
0:02:41]} 8... a5 {[%clk 0:02:37.8]} 9. Qg3 {[%clk 0:02:36.1]} 9... O-O {[%clk
0:02:13.4]} 10. Bd3 {[%clk 0:02:27.8]} 10... Be7 {[%clk 0:02:12]} 11. Nf3 {[%clk
0:02:24.4]} 11... h6 {[%clk 0:02:11.2]} 12. O-O {[%clk 0:02:01.9]} 12... f5
{[%clk 0:02:10.2]} 13. Ned2 {[%clk 0:02:01.1]} 13... Bd6 {[%clk 0:02:04]} 14.
Ne5 {[%clk 0:01:59.3]} 14... Bxe5 {[%clk 0:02:01.1]} 15. dxe5 {[%clk 0:01:59.2]}
15... Nxe5 {[%clk 0:02:00.2]} 16. Qxe5 {[%clk 0:01:58.3]} 16... Qxd3 {[%clk
0:02:00]} 17. Rad1 {[%clk 0:01:54.6]} 17... Qd5 {[%clk 0:01:57.6]} 18. Qxc7
{[%clk 0:01:52.7]} 18... Qc6 {[%clk 0:01:56.5]} 19. Qxc6 {[%clk 0:01:51.4]}
19... bxc6 {[%clk 0:01:57.3]} 20. Nc4 {[%clk 0:01:51.9]} 20... Ba6 {[%clk
0:01:57.2]} 21. b3 {[%clk 0:01:48.3]} 21... a4 {[%clk 0:01:57.1]} 22. Rd6 {[%clk
0:01:44.8]} 22... axb3 {[%clk 0:01:56.1]} 23. axb3 {[%clk 0:01:44.5]} 23... Rfe8
{[%clk 0:01:49.2]} 24. Rxc6 {[%clk 0:01:42]} 24... Bb5 {[%clk 0:01:46.7]} 25.
Rc5 {[%clk 0:01:41.6]} 25... Rab8 {[%clk 0:01:43.6]} 26. Re1 {[%clk 0:01:37.7]}
26... Bxc4 {[%clk 0:01:43]} 27. bxc4 {[%clk 0:01:36.9]} 27... Kf7 {[%clk
0:01:43.5]} 28. Rc7+ {[%clk 0:01:35.9]} 28... Re7 {[%clk 0:01:43.2]} 29. Rc6
{[%clk 0:01:29.8]} 29... Kf6 {[%clk 0:01:38.6]} 30. g3 {[%clk 0:01:26.1]} 30...
g5 {[%clk 0:01:34.6]} 31. c5 {[%clk 0:01:23.1]} 31... Rb5 {[%clk 0:01:31.4]} 32.
Kg2 {[%clk 0:01:16.8]} 32... f4 {[%clk 0:01:30.5]} 33. gxf4 {[%clk 0:01:11.5]}
33... gxf4 {[%clk 0:01:30.4]} 34. Kf3 {[%clk 0:01:11.9]} 34... Kf5 {[%clk
0:01:29.8]} 35. Rd1 {[%clk 0:01:09.5]} 35... Rb3 {[%clk 0:01:25.6]} 36. Rd3
{[%clk 0:01:05.1]} 36... e5 {[%clk 0:01:23.8]} 37. Rd8 {[%clk 0:00:50.6]} 37...
Rxc3+ {[%clk 0:01:22.6]} 38. Ke2 {[%clk 0:00:50]} 38... Rc2+ {[%clk 0:01:20.3]}
39. Ke1 {[%clk 0:00:34.5]} 39... f3 {[%clk 0:01:16.3]} 40. Rxh6 {[%clk
0:00:30.3]} 40... Rxc5 {[%clk 0:01:14.5]} 41. Rh4 {[%clk 0:00:27.9]} 41... Rb7
{[%clk 0:01:04.4]} 42. Rf8+ {[%clk 0:00:22.4]} 42... Kg5 {[%clk 0:01:03.9]} 43.
Re4 {[%clk 0:00:17.4]} 43... Rb2 {[%clk 0:00:47.7]} 44. Rd8 {[%clk 0:00:10.5]}
44... Rc1+ {[%clk 0:00:45.5]} 45. Rd1 {[%clk 0:00:10.5]} 45... Rxd1+ {[%clk
0:00:43.1]} 46. Kxd1 {[%clk 0:00:11.4]} 46... Kf5 {[%clk 0:00:43.2]} 47. Re3
{[%clk 0:00:07.1]} 47... Rxf2 {[%clk 0:00:42.8]} 48. h4 {[%clk 0:00:07.4]} 48...
Rh2 {[%clk 0:00:42.9]} 49. Rxf3+ {[%clk 0:00:07.3]} 49... Kg4 {[%clk 0:00:41]}
50. Re3 {[%clk 0:00:06.4]} 50... Kf4 {[%clk 0:00:40.4]} 51. Re2 {[%clk
0:00:05.6]} 51... Rxh4 {[%clk 0:00:38.9]} 52. Kd2 {[%clk 0:00:05.9]} 52... e4
{[%clk 0:00:39.4]} 53. Rf2+ {[%clk 0:00:06.2]} 53... Ke5 {[%clk 0:00:38.9]} 54.
Ke2 {[%clk 0:00:06.3]} 54... Kd4 {[%clk 0:00:39.1]} 55. Rf6 {[%clk 0:00:06.1]}
55... Rh3 {[%clk 0:00:38.6]} 56. Rd6+ {[%clk 0:00:05.4]} 56... Ke5 {[%clk
0:00:38.5]} 57. Rd8 {[%clk 0:00:05.5]} 57... Rh2+ {[%clk 0:00:38]} 58. Ke3
{[%clk 0:00:05.8]} 58... Rh3+ {[%clk 0:00:37]} 59. Ke2 {[%clk 0:00:06.1]} 59...
Kf4 {[%clk 0:00:36.9]} 60. Rf8+ {[%clk 0:00:06.2]} 60... Kg5 {[%clk 0:00:33.6]}
61. Rg8+ {[%clk 0:00:05]} 61... Kf6 {[%clk 0:00:32.8]} 62. Re8 {[%clk
0:00:04.4]} 62... Kf5 {[%clk 0:00:30.9]} 63. Rf8+ {[%clk 0:00:04.6]} 63... Ke6
{[%clk 0:00:28.3]} 64. Re8+ {[%clk 0:00:04.4]} 64... Kd5 {[%clk 0:00:27.5]} 65.
Rd8+ {[%clk 0:00:04.5]} 65... Ke5 {[%clk 0:00:25.9]} 66. Re8+ {[%clk 0:00:04.6]}
66... Kd4 {[%clk 0:00:26.4]} 67. Rd8+ {[%clk 0:00:04.2]} 67... Kc4 {[%clk
0:00:25.9]} 68. Re8 {[%clk 0:00:03.6]} 68... Kd5 {[%clk 0:00:22.6]} 69. Rd8+
{[%clk 0:00:03.5]} 69... Kc5 {[%clk 0:00:21.1]} 70. Re8 {[%clk 0:00:03.1]} 70...
Kd4 {[%clk 0:00:20.9]} 71. Rd8+ {[%clk 0:00:03.1]} 71... Ke5 {[%clk 0:00:20.9]}
72. Re8+ {[%clk 0:00:03.5]} 72... Kf5 {[%clk 0:00:21]} 73. Rf8+ {[%clk
0:00:03.9]} 73... Ke6 {[%clk 0:00:20.5]} 74. Re8+ {[%clk 0:00:04.2]} 74... Kd5
{[%clk 0:00:21.1]} 1/2-1/2

[Event "*** SCC Grand Prix: Titled Tuesday Blitz"]
[Site "Chess.com"]
[Date "2020.09.29"]
[Round "6"]
[White "IANOV0007"]
[Black "belisarius64"]
[Result "1/2-1/2"]
[WhiteElo "2492"]
[BlackElo "2672"]
[TimeControl "180+1"]
[EndTime "11:07:26 PDT"]
[Termination "Game drawn - insufficient material"]

1. Nf3 {[%clk 0:03:00.9]} 1... Nf6 {[%clk 0:02:58.9]} 2. g3 {[%clk 0:02:59.8]}
2... g6 {[%clk 0:02:59]} 3. b3 {[%clk 0:02:59.4]} 3... Bg7 {[%clk 0:02:59.9]} 4.
Bb2 {[%clk 0:02:59.5]} 4... O-O {[%clk 0:03:00.8]} 5. Bg2 {[%clk 0:02:59.5]}
5... d6 {[%clk 0:03:01.4]} 6. d4 {[%clk 0:02:59.3]} 6... Nc6 {[%clk 0:02:51.4]}
7. O-O {[%clk 0:02:58.4]} 7... a5 {[%clk 0:02:24.9]} 8. a4 {[%clk 0:02:56.5]}
8... Nd7 {[%clk 0:02:17.8]} 9. Nbd2 {[%clk 0:02:51.6]} 9... e5 {[%clk
0:02:14.4]} 10. dxe5 {[%clk 0:02:34.1]} 10... dxe5 {[%clk 0:02:15.3]} 11. e4
{[%clk 0:02:32.9]} 11... Nc5 {[%clk 0:02:03.6]} 12. Ba3 {[%clk 0:02:30.7]} 12...
Nb4 {[%clk 0:01:57.4]} 13. Bxb4 {[%clk 0:02:20.8]} 13... axb4 {[%clk 0:01:55.6]}
14. Qe2 {[%clk 0:02:20.5]} 14... b6 {[%clk 0:01:47.6]} 15. Rfd1 {[%clk
0:02:16.6]} 15... Ba6 {[%clk 0:01:46.6]} 16. Nc4 {[%clk 0:02:15.7]} 16... Qe7
{[%clk 0:01:46.9]} 17. Bf1 {[%clk 0:02:10.7]} 17... Ne6 {[%clk 0:01:41.6]} 18.
Qe1 {[%clk 0:02:02]} 18... Nd4 {[%clk 0:01:35.6]} 19. Nxd4 {[%clk 0:02:01]}
19... exd4 {[%clk 0:01:36.5]} 20. Bd3 {[%clk 0:01:51.5]} 20... Rfe8 {[%clk
0:01:28.6]} 21. Qd2 {[%clk 0:01:49.2]} 21... h5 {[%clk 0:01:15.7]} 22. Re1
{[%clk 0:01:47.5]} 22... Qc5 {[%clk 0:01:12.2]} 23. Rad1 {[%clk 0:01:41.9]}
23... Re6 {[%clk 0:01:02.8]} 24. Kg2 {[%clk 0:01:38.6]} 24... Rae8 {[%clk
0:01:01.8]} 25. f3 {[%clk 0:01:37.2]} 25... Bb7 {[%clk 0:00:57.8]} 26. Re2
{[%clk 0:01:29.7]} 26... Kh7 {[%clk 0:00:55.7]} 27. Rde1 {[%clk 0:01:28.3]}
27... Bh6 {[%clk 0:00:56.2]} 28. Qd1 {[%clk 0:01:26.5]} 28... c6 {[%clk
0:00:54.6]} 29. Qa1 {[%clk 0:01:15]} 29... b5 {[%clk 0:00:51.7]} 30. Nb2 {[%clk
0:01:13.8]} 30... Ra8 {[%clk 0:00:41.4]} 31. Qb1 {[%clk 0:01:11.5]} 31... Be3
{[%clk 0:00:36.6]} 32. axb5 {[%clk 0:01:07.1]} 32... cxb5 {[%clk 0:00:36.5]} 33.
Nd1 {[%clk 0:01:06.8]} 33... Bh6 {[%clk 0:00:36.7]} 34. Nf2 {[%clk 0:01:06.1]}
34... Qc3 {[%clk 0:00:34.9]} 35. Nd1 {[%clk 0:01:04.8]} 35... Qa1 {[%clk
0:00:33.9]} 36. Qxa1 {[%clk 0:01:02.9]} 36... Rxa1 {[%clk 0:00:34.8]} 37. Nf2
{[%clk 0:01:02.6]} 37... Rxe1 {[%clk 0:00:31.8]} 38. Rxe1 {[%clk 0:01:02.6]}
38... Rc6 {[%clk 0:00:20.5]} 39. Ra1 {[%clk 0:01:00.4]} 39... Ra6 {[%clk
0:00:15]} 40. Rxa6 {[%clk 0:00:55.6]} 40... Bxa6 {[%clk 0:00:15.9]} 41. f4
{[%clk 0:00:54.4]} 41... Bf8 {[%clk 0:00:14.9]} 42. e5 {[%clk 0:00:53.9]} 42...
Kg7 {[%clk 0:00:14.4]} 43. Be4 {[%clk 0:00:53.4]} 43... f6 {[%clk 0:00:13.5]}
44. Nd3 {[%clk 0:00:53.1]} 44... Be7 {[%clk 0:00:09.5]} 45. Kf3 {[%clk
0:00:51.2]} 45... g5 {[%clk 0:00:09.4]} 46. e6 {[%clk 0:00:49.2]} 46... f5
{[%clk 0:00:05]} 47. Bxf5 {[%clk 0:00:48.2]} 47... Bb7+ {[%clk 0:00:05.6]} 48.
Kf2 {[%clk 0:00:46]} 48... Kf6 {[%clk 0:00:06.2]} 49. Bh3 {[%clk 0:00:44]} 49...
g4 {[%clk 0:00:06.4]} 50. Bg2 {[%clk 0:00:43.9]} 50... Bxg2 {[%clk 0:00:07.1]}
51. Kxg2 {[%clk 0:00:43.9]} 51... Kxe6 {[%clk 0:00:08]} 52. Kf2 {[%clk
0:00:42.7]} 52... Kf5 {[%clk 0:00:07.1]} 53. Ke2 {[%clk 0:00:42]} 53... Ke4
{[%clk 0:00:07.6]} 54. Nf2+ {[%clk 0:00:41.7]} 54... Kd5 {[%clk 0:00:07.3]} 55.
Kd3 {[%clk 0:00:41.7]} 55... Bd6 {[%clk 0:00:05.7]} 56. Ne4 {[%clk 0:00:41.6]}
56... Be7 {[%clk 0:00:06.3]} 57. f5 {[%clk 0:00:38.6]} 57... Ke5 {[%clk
0:00:06.7]} 58. f6 {[%clk 0:00:33.7]} 58... Bxf6 {[%clk 0:00:04.6]} 59. Nc5
{[%clk 0:00:33.4]} 59... Be7 {[%clk 0:00:02.8]} 60. Ne4 {[%clk 0:00:29.8]} 60...
h4 {[%clk 0:00:03.2]} 61. Nf2 {[%clk 0:00:26.4]} 61... hxg3 {[%clk 0:00:03.3]}
62. hxg3 {[%clk 0:00:26.5]} 62... Kf5 {[%clk 0:00:01.8]} 63. Ne4 {[%clk
0:00:26.2]} 63... Ke5 {[%clk 0:00:01.2]} 64. Nf2 {[%clk 0:00:25.7]} 64... Kf5
{[%clk 0:00:01.8]} 65. Ne4 {[%clk 0:00:25.6]} 65... Bd8 {[%clk 0:00:02.7]} 66.
Kxd4 {[%clk 0:00:23.4]} 66... Bb6+ {[%clk 0:00:03.1]} 67. Kd3 {[%clk 0:00:23.2]}
67... Bc7 {[%clk 0:00:03.7]} 68. Kd4 {[%clk 0:00:22.3]} 68... Be5+ {[%clk
0:00:04.3]} 69. Kd3 {[%clk 0:00:22.2]} 69... Bb8 {[%clk 0:00:05]} 70. Ke3 {[%clk
0:00:21.7]} 70... Ba7+ {[%clk 0:00:04.6]} 71. Kd3 {[%clk 0:00:21.6]} 71... Bb8
{[%clk 0:00:05.1]} 72. Kd4 {[%clk 0:00:20.9]} 72... Ba7+ {[%clk 0:00:05.5]} 73.
Kd5 {[%clk 0:00:21]} 73... Bb8 {[%clk 0:00:06.1]} 74. Nd6+ {[%clk 0:00:20.2]}
74... Bxd6 {[%clk 0:00:06.2]} 75. Kxd6 {[%clk 0:00:19.7]} 75... Ke4 {[%clk
0:00:07.1]} 76. Kc5 {[%clk 0:00:19.9]} 76... Kf3 {[%clk 0:00:07.8]} 77. Kxb4
{[%clk 0:00:20]} 77... Kxg3 {[%clk 0:00:08.7]} 78. c4 {[%clk 0:00:20.2]} 78...
bxc4 {[%clk 0:00:07]} 79. bxc4 {[%clk 0:00:19.7]} 79... Kf3 {[%clk 0:00:06.9]}
80. c5 {[%clk 0:00:19.8]} 80... g3 {[%clk 0:00:07.8]} 81. c6 {[%clk 0:00:19.9]}
81... g2 {[%clk 0:00:08.7]} 82. c7 {[%clk 0:00:20.1]} 82... g1=Q {[%clk
0:00:09.6]} 83. c8=Q {[%clk 0:00:19.6]} 83... Qb6+ {[%clk 0:00:10.1]} 84. Kc4
{[%clk 0:00:18.5]} 84... Qe3 {[%clk 0:00:07.8]} 85. Qh3+ {[%clk 0:00:17.3]}
85... Ke2 {[%clk 0:00:07.8]} 86. Qxe3+ {[%clk 0:00:17.3]} 86... Kxe3 {[%clk
0:00:08.3]} 1/2-1/2